bitfinex/quotes_ETHUSD_20240602
["timestamp","ask_amount","ask_price","bid_price","bid_amount"]
[1717315355291,0.03985186,3789.8,3789.0,2.63916]
[1717315355493,0.03985186,3789.8,3789.1,1.336]
[1717315356802,0.03985186,3789.8,3789.2,2.63906]
[1717315357152,0.55,3790.2,3789.2,2.63906]
[1717315357456,0.03941111,3790.1,3789.2,2.63906]
[1717315357992,0.03941111,3790.1,3789.5,2.63884]
[1717315358191,0.03941111,3790.1,3789.5,3.97484]
[1717315358486,0.54478319,3790.6,3789.5,3.97484]
[1717315358697,0.0394173,3790.0,3789.5,3.97484]
[1717315358924,0.55,3790.5,3789.5,3.97484]
[1717315359119,0.03939333,3789.9,3789.5,3.97484]
[1717315359277,0.54478319,3790.4,3789.5,3.97484]
[1717315359477,0.03936936,3789.8,3789.5,3.97484]
[1717315359687,1.09478319,3790.5,3789.5,3.97484]
[1717315359916,0.54478319,3790.5,3789.8,2.63863]
[1717315360218,3.54478319,3790.6,3789.8,2.63863]
[1717315361088,2.63818,3790.5,3789.4,2.6389]
[1717315361281,3.0,3790.4,3788.9,2.63922]
[1717315361482,0.54478319,3790.3,3789.0,1.336]
[1717315361830,0.55,3790.2,3789.0,1.336]
[1717315362379,2.63861,3789.9,3789.0,1.336]
[1717315364273,0.55,3789.8,3789.0,1.336]
[1717315364473,0.58945439,3789.8,3789.0,1.336]
[1717315366825,2.63877,3789.7,3788.9,2.63922]
[1717315367032,3.18355319,3789.7,3788.9,2.63922]
[1717315367239,0.54478319,3789.5,3788.9,2.63922]
[1717315367537,0.54478319,3789.4,3788.9,2.63922]
[1717315367835,0.58399904,3789.4,3788.9,2.63922]
[1717315368028,0.03921585,3789.4,3788.9,2.63922]
[1717315368827,0.03921585,3789.4,3789.2,3.97504]
[1717315369032,0.03921585,3789.4,3789.3,1.336]
[1717315369500,0.54478319,3789.8,3789.4,2.6389]
[1717315369698,0.81428983,3789.9,3789.4,2.6389]
[1717315369699,0.54478319,3789.7,3789.4,2.6389]
[1717315370332,0.54478319,3789.6,3789.4,2.6389]
[1717315370500,0.54478319,3789.5,3789.4,2.6389]
[1717315370894,0.54478319,3789.6,3789.4,2.6389]
[1717315371431,0.54478319,3789.5,3789.4,2.6389]
[1717315371591,0.54478319,3789.5,3789.3,1.336]
[1717315371797,0.81428983,3789.5,3789.1,1.336]
[1717315372015,0.54656969,3789.3,3789.1,1.336]
[1717315372741,0.54656969,3789.2,3789.1,1.336]
[1717315373339,0.81428983,3789.3,3789.1,1.336]
[1717315373955,0.81428983,3789.2,3789.1,1.336]
[1717315374472,0.82103613,3789.2,3789.1,1.336]
[1717315375815,0.82103613,3789.2,3789.1,1.13184059]
[1717315376483,0.82103613,3789.3,3789.1,3.77092059]
[1717315378047,0.82103613,3789.2,3789.1,3.77092059]
[1717315378653,0.54749926,3789.3,3789.1,3.77092059]
[1717315379022,0.54749926,3789.2,3789.1,3.77092059]
[1717315379416,0.58628317,3789.2,3789.1,3.77092059]
[1717315380753,0.03878391,3789.2,3788.7,2.63935]
[1717315381062,0.03878391,3789.2,3789.1,1.336]
[1717315381569,0.82103613,3789.3,3789.1,1.336]
[1717315381784,0.85952776,3789.2,3789.1,1.336]
[1717315382938,0.03849163,3789.2,3789.1,1.336]
[1717315383456,0.03849163,3789.2,3788.7,1.336]
[1717315383457,0.85952776,3789.2,3788.7,1.336]
[1717315383662,0.54744589,3788.9,3788.7,1.336]
[1717315383829,0.54744589,3788.8,3788.7,1.336]
[1717315384033,0.85956453,3788.8,3788.7,1.336]
[1717315384437,0.0383957,3788.8,3788.7,1.336]
[1717315385162,0.0383957,3788.8,3788.0,2.63991]
[1717315385485,0.5473668,3788.4,3788.3,1.336]
[1717315385640,1.12411548,3788.8,3786.9,0.2852217]
[1717315385641,1.3686255,3788.5,3786.9,0.2852217]
[1717315385835,1.09426909,3788.2,3788.0,1.336]
[1717315386062,0.82074434,3788.1,3788.0,1.336]
[1717315386264,0.03778339,3788.1,3788.0,1.336]
[1717315386876,0.54723882,3788.2,3788.1,2.63984]
[1717315387038,0.82074434,3788.4,3788.1,3.274584]
[1717315387039,0.54723882,3788.3,3788.1,3.274584]
[1717315388446,0.54723882,3788.5,3788.1,3.274584]
[1717315388664,0.54723882,3788.5,3788.4,1.336]
[1717315388870,7.32,3788.6,3788.4,1.336]
[1717315388871,8.14074434,3788.6,3788.4,1.336]
[1717315389078,0.82074434,3788.5,3788.4,1.336]
[1717315389462,8.14074434,3788.6,3788.4,1.336]
[1717315390302,0.82074434,3788.6,3788.4,1.336]
[1717315390466,0.82074434,3788.5,3788.4,1.336]
[1717315391951,0.82074434,3788.6,3788.4,1.336]
[1717315392152,0.82074434,3788.6,3788.4,3.9756]
[1717315392464,0.54682596,3788.5,3788.4,3.9756]
[1717315393298,0.54682596,3788.5,3788.0,2.63985]
[1717315393454,0.54672623,3788.4,3788.1,1.336]
[1717315393647,0.54672623,3788.3,3788.1,1.336]
[1717315393854,0.54672623,3788.2,3788.0,2.63985]
[1717315394077,0.54672623,3788.2,3788.0,3.97585]
[1717315394489,0.58445475,3788.1,3788.0,3.97585]
[1717315396374,0.03772852,3788.1,3788.0,3.97585]
[1717315399197,0.03772852,3788.1,3787.6,2.64015]
[1717315399404,0.03772852,3788.1,3786.8,0.28530843]
[1717315399561,0.54742474,3787.4,3787.1,1.336]
[1717315399890,0.58442026,3787.3,3787.1,1.336]
[1717315400265,0.03699552,3787.3,3787.0,2.64054]
[1717315400461,0.03699552,3787.3,3787.2,1.336]
[1717315400875,0.03699552,3787.3,3786.2,4.66231621]
[1717315401197,0.03699552,3787.3,3787.2,1.336]
[1717315401198,0.58442026,3787.3,3787.2,1.336]
[1717315401572,0.03699552,3787.3,3787.2,1.336]
[1717315402484,0.54742474,3787.5,3787.3,2.6404]
[1717315402696,0.54742474,3787.6,3787.3,2.6404]
[1717315402898,0.54742474,3787.6,3787.5,1.336]
[1717315403108,0.54742474,3787.7,3787.5,1.336]
[1717315403407,0.54742474,3788.1,3788.0,2.63991]
[1717315403607,0.54742474,3788.4,3788.0,3.97591]
[1717315403787,0.54742474,3788.5,3788.2,2.63977]
[1717315404007,0.54742474,3788.4,3788.2,2.63977]
[1717315404219,0.54742474,3788.4,3788.3,1.336]
[1717315405718,1.3686255,3788.9,3788.4,2.63963]
[1717315405719,0.54742474,3788.5,3788.4,2.63963]
[1717315405881,0.54742474,3788.8,3788.4,2.8129891]
[1717315406217,0.54742474,3788.9,3788.8,2.63935]
[1717315406420,0.54742474,3789.2,3788.8,2.63935]
[1717315406642,0.54742474,3789.2,3789.1,1.336]
[1717315406830,0.82074434,3789.3,3789.1,1.336]
[1717315407010,2.63861,3789.9,3789.1,1.336]
[1717315407011,0.82074434,3789.2,3789.1,1.336]
[1717315407640,0.82074434,3789.3,3789.1,1.336]
[1717315408693,0.82074434,3789.2,3789.1,1.336]
[1717315408890,0.82074434,3789.3,3789.1,1.336]
[1717315409494,0.03528948,3789.2,3789.1,3.97508]
[1717315409696,0.82074434,3789.3,3789.1,3.97508]
[1717315410005,0.03528948,3789.2,3789.1,3.97508]
[1717315410405,0.54736887,3789.3,3789.1,2.63908]
[1717315410602,0.03528948,3789.2,3789.1,2.63908]
[1717315410802,0.03528948,3789.2,3789.1,3.97508]
[1717315411010,0.54736887,3789.2,3789.1,2.63908]
[1717315411233,0.03528948,3789.2,3789.1,2.63908]
[1717315411622,0.03550126,3789.2,3789.1,2.63908]
[1717315411878,0.82074434,3789.3,3789.1,2.63908]
[1717315412242,0.58284894,3789.2,3789.1,2.63908]
[1717315414094,0.03550126,3789.2,3789.1,2.63908]
[1717315414469,0.54734768,3789.3,3789.1,2.63908]
[1717315414695,0.03544076,3789.2,3789.1,2.63908]
[1717315414894,0.54734768,3789.3,3789.1,2.63908]
[1717315415061,0.03544076,3789.2,3789.1,2.63908]
[1717315415390,0.54734768,3789.3,3789.1,3.036588]
[1717315415590,0.03544076,3789.2,3789.1,3.036588]
[1717315415748,0.03544076,3789.2,3789.1,4.372588]
[1717315415949,0.54734768,3789.5,3789.1,4.372588]
[1717315416149,0.54734768,3789.5,3789.3,2.639]
[1717315416863,0.54734768,3789.6,3789.3,2.639]
[1717315417396,0.49734768,3789.6,3789.3,2.639]
[1717315418559,0.82074434,3789.9,3789.6,2.63875]
[1717315419034,0.82074434,3789.8,3789.6,2.63875]
[1717315419176,0.82074434,3789.9,3789.6,2.63875]
[1717315419371,0.82074434,3789.9,3789.6,2.902625]
[1717315419575,0.82074434,3789.9,3789.8,1.336]
[1717315419990,0.82074434,3790.2,3789.9,2.63859]
[1717315420200,0.82074434,3790.2,3790.1,2.63845]
[1717315420495,0.82074434,3790.4,3790.1,2.63845]
[1717315420661,0.82074434,3790.5,3790.3,1.336]
[1717315421054,0.82074434,3790.4,3790.3,1.336]
[1717315421288,0.82074434,3790.6,3790.3,1.336]
[1717315421792,0.82074434,3790.6,3790.4,2.63824]
[1717315421982,0.82074434,3790.7,3790.4,2.63824]
[1717315422316,0.82074434,3790.9,3790.4,2.63824]
[1717315422614,0.82074434,3790.9,3789.8,2.63864]
[1717315422615,0.82074434,3790.9,3790.7,1.336]
[1717315422980,0.82074434,3791.0,3790.7,1.336]
[1717315424125,0.82074434,3791.1,3790.8,2.63796]
[1717315424281,0.82074434,3791.2,3791.0,1.336]
[1717315424470,0.82074434,3791.4,3791.0,1.336]
[1717315425235,0.82074434,3791.4,3791.1,2.63774]
[1717315425510,0.82074434,3791.5,3791.1,2.63774]
[1717315425710,3.13044434,3791.7,3791.1,2.63774]
[1717315425924,0.82074434,3791.7,3791.1,2.63774]
[1717315426565,0.82074434,3791.9,3791.4,1.336]
[1717315426690,0.82074434,3792.1,3791.4,3.97352]
[1717315427095,0.82074434,3792.2,3791.4,3.97352]
[1717315427288,0.54582307,3792.1,3791.4,3.97352]
[1717315427617,0.54582307,3792.2,3791.4,3.97352]
[1717315428323,3.18278307,3792.3,3791.4,3.97352]
[1717315429419,2.63696,3792.3,3791.4,3.97352]
[1717315429584,3.18278307,3792.3,3791.4,3.97352]
[1717315429922,2.63696,3792.3,3791.4,3.97352]
[1717315430417,2.63696,3792.3,3791.4,4.370872]
[1717315430811,7.32,3792.4,3791.4,4.370872]
[1717315431769,7.32,3792.4,3791.4,1.733352]
[1717315431974,7.32,3792.4,3791.0,2.4469]
[1717315431975,7.32,3792.4,3791.8,1.336]
[1717315432180,7.32,3792.4,3791.9,2.63719]
[1717315434192,2.63668,3792.7,3791.9,2.63719]
[1717315435190,4.94638,3792.7,3791.9,2.63719]
[1717315436585,4.94638,3792.7,3791.9,2.97051002]
[1717315439149,2.63668,3792.7,3791.9,2.97051002]
[1717315439748,0.03158723,3792.6,3791.9,2.97051002]
[1717315440750,2.3508,3792.5,3790.9,1.599796]
[1717315440917,2.38236329,3792.5,3790.9,1.336]
[1717315441413,2.637,3792.2,3791.1,2.63769]
[1717315441613,2.6372,3791.9,3791.2,0.397369]
[1717315442035,0.03139566,3791.8,3791.2,0.397369]
[1717315442805,0.03139566,3791.8,3791.3,1.336]
[1717315443305,2.63696,3792.3,3791.3,1.336]
[1717315443514,2.63708,3792.1,3791.3,1.336]
[1717315443722,2.63708,3792.1,3791.4,0.4371059]
[1717315443925,2.63724,3791.9,3791.4,0.4371059]
[1717315444441,0.03149753,3791.8,3791.4,0.4371059]
[1717315449817,2.63719,3792.0,3791.4,0.4371059]
[1717315450051,0.03147358,3791.7,3791.4,0.4371059]
[1717315450246,2.63719,3792.0,3791.2,1.336]
[1717315450472,0.03144963,3791.6,3791.2,1.336]
[1717315450630,2.63719,3792.0,3791.2,1.336]
[1717315450825,0.03142567,3791.5,3791.2,1.336]
[1717315451170,0.03140172,3791.4,3791.3,0.397369]
[1717315451326,2.63719,3792.0,3791.3,0.397369]
[1717315451667,0.03140172,3791.4,3791.3,0.397369]
[1717315451838,2.63719,3792.0,3791.3,0.397369]
[1717315452033,0.03140172,3791.4,3791.3,0.397369]
[1717315452219,2.63719,3792.0,3791.3,0.397369]
[1717315452425,0.03140172,3791.4,3791.3,0.397369]
[1717315452663,2.63719,3792.0,3791.3,0.397369]
[1717315452866,0.03148706,3791.4,3791.3,0.397369]
[1717315453078,2.63719,3792.0,3791.3,0.397369]
[1717315453275,0.03148706,3791.4,3791.3,0.397369]
[1717315453467,2.63719,3792.0,3791.3,0.397369]
[1717315453668,0.03148706,3791.4,3791.3,0.397369]
[1717315453883,2.63719,3792.0,3791.3,0.397369]
[1717315454044,0.03148706,3791.4,3791.3,0.397369]
[1717315454242,2.63719,3792.0,3791.3,0.397369]
[1717315454439,0.03148706,3791.4,3791.2,1.336]
[1717315454682,2.63737,3791.7,3790.8,1.336]
[1717315454858,0.0314631,3791.3,3790.8,1.336]
[1717315455059,2.63737,3791.7,3790.9,2.63788]
[1717315455251,0.03143365,3791.2,3791.0,0.397388]
[1717315455435,2.63737,3791.7,3791.0,0.397388]
[1717315455657,0.03140969,3791.1,3791.0,0.397388]
[1717315455875,2.63737,3791.7,3791.0,0.397388]
[1717315456053,0.03140969,3791.1,3791.0,0.397388]
[1717315456552,2.63737,3791.7,3791.0,0.397388]
[1717315456749,0.03140969,3791.1,3791.0,0.397388]
[1717315456959,2.63737,3791.7,3791.0,0.397388]
[1717315457167,0.03140969,3791.1,3791.0,0.397388]
[1717315457442,2.63737,3791.7,3790.9,2.63788]
[1717315457643,0.03140969,3791.1,3790.9,2.63788]
[1717315457981,0.03138573,3791.0,3790.9,2.63788]
[1717315458179,2.63737,3791.7,3790.9,2.63788]
[1717315458383,0.03138573,3791.0,3790.9,2.63788]
[1717315458561,2.63737,3791.7,3790.9,2.63788]
[1717315458759,0.03138573,3791.0,3790.9,2.63788]
[1717315458961,2.63737,3791.7,3790.9,3.035268]
[1717315459162,0.03138573,3791.0,3790.9,3.035268]
[1717315459488,0.54582307,3791.7,3790.9,3.035268]
[1717315459703,0.54582307,3791.7,3791.2,1.336]
[1717315460347,0.54582307,3791.6,3791.2,1.336]
[1717315461292,0.54582307,3791.5,3791.3,2.6376]
[1717315461464,0.54582307,3791.6,3791.4,0.39736]
[1717315461985,0.54582307,3791.5,3791.4,0.39736]
[1717315462173,0.54582307,3791.5,3791.3,2.6376]
[1717315462985,0.54582307,3791.6,3791.3,2.6376]
[1717315463185,0.82074434,3791.8,3791.6,2.6374]
[1717315463393,1.09426909,3791.8,3791.6,2.6374]
[1717315463581,0.82070219,3791.7,3791.6,2.6374]
[1717315464285,1.09426909,3791.7,3791.6,2.6374]
[1717315465259,1.36850952,3791.8,3791.6,2.6374]
[1717315466261,1.36850952,3791.8,3791.7,0.39734]
[1717315466470,0.69670327,3792.0,3791.6,2.6374]
[1717315466686,1.36990654,3791.7,3791.6,2.6374]
[1717315467404,0.69670327,3792.0,3791.9,2.6372]
[1717315467405,0.69769061,3792.0,3791.9,2.6372]
[1717315467699,1.64221143,3792.2,3791.9,3.9732]
[1717315467994,1.64221143,3792.3,3791.9,3.9732]
[1717315468197,2.3398782,3792.2,3791.9,4.37052]
[1717315468598,1.64221143,3792.3,3792.1,2.637]
[1717315468811,0.6978537,3792.2,3792.1,2.637]
[1717315469565,2.37187592,3792.2,3792.1,2.637]
[1717315470381,0.72966449,3792.2,3792.1,2.637]
[1717315470907,2.37553833,3792.2,3792.1,2.637]
[1717315471112,2.37552567,3792.2,3792.1,2.637]
[1717315472211,2.37572604,3792.2,3792.1,2.637]
[1717315472373,0.72966449,3792.2,3792.1,2.637]
[1717315472574,0.72966449,3792.2,3792.1,3.0343]
[1717315474494,2.37571576,3792.2,3792.1,3.0343]
[1717315477510,2.37571576,3792.2,3792.1,3.5893]
[1717315477720,2.37571576,3792.2,3792.1,2.637]
[1717315477914,2.37571576,3792.2,3792.1,3.192]
[1717315484417,2.37571576,3792.2,3790.9,2.63783]
[1717315484418,2.37571576,3792.2,3791.8,2.63726]
[1717315484624,1.37140252,3791.9,3791.8,2.63726]
[1717315484831,2.371458,3792.1,3791.8,3.19226]
[1717315485017,0.03069129,3791.9,3791.8,2.63726]
[1717315485210,1.64605127,3792.1,3791.8,3.19226]
[1717315485544,0.03069129,3791.9,3791.8,2.63726]
[1717315485747,1.64605127,3792.1,3791.8,3.19226]
[1717315486063,0.69467597,3792.0,3791.8,2.63726]
[1717315486196,0.03071523,3792.0,3791.9,0.555]
[1717315486395,0.72540123,3792.0,3791.9,0.555]
[1717315486713,0.03071523,3792.0,3791.9,0.555]
[1717315487092,1.64605127,3792.2,3791.9,0.555]
[1717315487297,0.03063266,3792.0,3791.8,2.63726]
[1717315487561,2.34073731,3792.1,3791.8,2.63726]
[1717315487562,2.34073731,3792.1,3791.9,0.555]
[1717315487734,0.69468391,3792.0,3791.9,0.555]
[1717315488765,1.64605127,3792.1,3791.9,0.555]
[1717315488930,1.64605127,3792.2,3791.9,0.555]
[1717315489155,1.64605127,3792.2,3792.1,0.555]
[1717315489458,2.34072535,3792.2,3792.1,0.555]
[1717315490657,2.34072535,3792.2,3791.8,2.63726]
[1717315490858,1.64605127,3792.2,3792.1,0.555]
[1717315491020,2.34071249,3792.2,3792.1,0.555]
[1717315493984,2.34071249,3792.2,3791.8,2.63726]
[1717315494340,1.92050666,3792.5,3792.1,0.555]
[1717315494486,0.69468925,3792.4,3792.3,0.555]
[1717315494794,2.61519591,3792.4,3792.3,0.555]
[1717315495153,2.6146245,3792.4,3792.3,0.555]
[1717315496766,0.69468925,3792.4,3792.3,0.555]
[1717315499090,0.69468925,3792.4,3791.8,2.63726]
[1717315499253,1.64550834,3792.1,3791.8,2.900986]
[1717315499588,1.64550834,3792.1,3792.0,0.555]
[1717315499788,2.34014893,3792.1,3792.0,0.555]
[1717315500897,0.69464059,3792.1,3792.0,0.555]
[1717315501599,2.34016568,3792.1,3792.0,0.555]
[1717315501824,1.64552509,3792.3,3792.1,2.63706]
[1717315502008,1.64552509,3792.4,3792.3,0.555]
[1717315502564,1.64552509,3792.7,3792.4,2.63685]
[1717315502789,1.64552509,3792.7,3792.6,0.555]
[1717315506108,1.64552509,3792.7,3792.0,2.98796237]
[1717315506292,1.91966834,3793.0,3792.6,0.555]
[1717315506484,2.63651,3792.9,3792.6,0.555]
[1717315506667,4.55617834,3792.9,3792.0,2.63709]
[1717315506898,1.37127694,3792.2,3792.0,2.63709]
[1717315507085,1.64553233,3792.5,3792.1,0.555]
[1717315507297,1.64553233,3792.5,3792.4,0.555]
[1717315512498,1.91966834,3792.8,3792.4,0.555]
[1717315512666,1.91966834,3792.8,3792.7,0.555]
[1717315513097,1.92008413,3792.8,3792.7,0.555]
[1717315513999,1.9201838,3792.8,3792.7,0.555]
[1717315514433,1.9201838,3792.8,3792.7,3.19164]
[1717315514434,1.95096914,3792.8,3792.7,3.19164]
[1717315514634,1.95096914,3792.8,3792.7,3.510804]
[1717315514635,1.67686035,3792.8,3792.7,3.510804]
[1717315514957,0.03078534,3792.8,3792.7,3.510804]
[1717315515844,0.03078534,3792.8,3792.3,2.63686]
[1717315516003,1.37137168,3792.4,3792.3,2.63686]
[1717315516197,1.37137168,3792.5,3792.3,3.19186]
[1717315516444,1.37137168,3792.5,3792.4,0.555]
[1717315519422,1.37137168,3792.5,3792.3,2.63686]
[1717315519599,1.37112196,3792.4,3791.9,2.63718]
[1717315519929,0.8226733,3792.1,3791.9,2.63718]
[1717315520231,0.8226733,3792.1,3792.0,0.555]
[1717315520431,1.09689774,3792.2,3792.0,0.874218]
[1717315520641,1.09689774,3792.2,3791.9,2.63718]
[1717315520847,1.09689774,3792.1,3791.5,2.63741]
[1717315521054,2.263,3792.8,3791.1,2.6377]
[1717315521055,0.54847351,3791.6,3791.1,2.6377]
[1717315521217,1.09689774,3791.7,3791.1,2.6377]
[1717315521539,1.09689774,3791.7,3791.1,2.90147]
[1717315521540,0.54841757,3791.2,3791.1,2.90147]
[1717315521715,0.82262636,3791.3,3791.1,0.81877]
[1717315521911,1.09689774,3791.2,3790.6,2.63803]
[1717315522248,0.54835415,3790.8,3790.6,2.63803]
[1717315522548,0.54835415,3790.8,3790.7,0.555]
[1717315522722,0.54835415,3790.8,3790.7,0.874303]
[1717315525246,0.54835415,3790.9,3790.7,0.874303]
[1717315525457,0.54835415,3790.9,3790.8,0.555]
[1717315526034,0.82253122,3791.0,3790.8,0.555]
[1717315526919,1.09689774,3791.1,3790.8,0.555]
[1717315526920,0.82253122,3790.9,3790.8,0.555]
[1717315527142,0.82253122,3790.9,3790.8,0.9062333]
[1717315527324,0.82253122,3791.0,3790.8,0.9062333]
[1717315527647,1.09689774,3791.1,3790.9,0.555]
[1717315528051,0.82166665,3791.0,3790.9,0.555]
[1717315529120,0.82166665,3791.0,3790.6,2.63803]
[1717315529453,0.54761338,3790.8,3790.6,2.901833]
[1717315529663,0.84943437,3790.9,3790.7,0.555]
[1717315529829,1.09689774,3791.0,3790.7,0.555]
[1717315529830,0.54761033,3790.8,3790.7,0.555]
[1717315530030,0.82166665,3790.8,3790.7,0.9006833]
[1717315530364,0.82166665,3790.9,3790.7,0.9006833]
[1717315530549,0.82166665,3790.9,3790.8,0.555]
[1717315530853,0.82166665,3790.9,3790.8,0.90887133]
[1717315531358,0.82166665,3790.9,3790.8,0.35387133]
[1717315531568,0.82166665,3790.9,3790.8,0.90887133]
[1717315532288,3.63412196,3790.9,3789.6,2.4052]
[1717315532433,0.54716066,3790.4,3789.2,2.4052]
[1717315532756,3.45893099,3790.5,3789.4,2.63889]
[1717315532959,3.45893099,3790.5,3790.3,0.555]
[1717315533464,3.45893099,3790.5,3789.5,0.504409]
[1717315533670,0.54692888,3790.3,3789.5,0.504409]
[1717315533869,0.54692888,3790.3,3790.2,0.555]
[1717315534381,0.54692888,3790.4,3790.2,0.555]
[1717315534531,0.54692888,3790.4,3790.3,0.555]
[1717315534863,2.6384,3790.2,3789.4,2.63889]
[1717315535168,3.45914099,3790.2,3789.5,0.263889]
[1717315535372,0.54647492,3789.9,3789.4,2.63889]
[1717315535542,0.54647492,3789.9,3789.8,0.555]
[1717315535757,0.82074099,3789.9,3789.0,2.63916]
[1717315535964,0.54642256,3789.6,3788.6,2.63944]
[1717315536166,0.54642256,3789.5,3789.3,0.555]
[1717315536512,0.54642256,3789.6,3789.3,0.555]
[1717315537076,0.54642256,3789.6,3788.6,2.63944]
[1717315537276,2.80942256,3789.7,3789.3,0.555]
[1717315537478,2.63881,3789.6,3788.6,2.63944]
[1717315537684,2.63881,3789.6,3789.3,0.555]
[1717315538970,2.63881,3789.6,3788.6,2.63944]
[1717315539216,2.63881,3789.6,3789.4,0.555]
[1717315540072,3.18523256,3789.6,3789.4,0.555]
[1717315540244,2.63881,3789.6,3789.4,0.555]
[1717315540443,3.18523256,3789.6,3788.6,2.63944]
[1717315540643,3.18523256,3789.6,3789.3,0.555]
[1717315541344,2.63881,3789.6,3789.3,0.555]
[1717315541794,1.09432132,3790.1,3787.8,5.4052]
[1717315541795,0.54642256,3790.3,3789.1,2.6391]
[1717315542104,2.2895,3789.9,3788.9,2.63924]
[1717315542381,2.2895,3789.9,3789.1,0.555]
[1717315542889,5.47457256,3789.9,3789.1,0.555]
[1717315543064,5.47457256,3789.9,3789.3,0.555]
[1717315543258,0.54642256,3789.8,3789.3,0.555]
[1717315543562,5.47457256,3789.9,3789.3,0.555]
[1717315544494,0.06028827,3789.8,3789.3,0.555]
[1717315544711,0.06028827,3789.8,3788.4,2.63957]
[1717315544712,0.06028827,3789.8,3789.5,0.555]
[1717315545195,0.06028827,3789.8,3789.7,0.555]
[1717315545396,0.06028827,3789.8,3788.9,0.263933]
[1717315545709,0.06028827,3789.8,3789.3,0.555]
[1717315546613,0.06028827,3789.8,3789.4,0.555]
[1717315548191,0.06028827,3789.8,3789.3,0.555]
[1717315548351,2.2895,3789.6,3788.4,2.63963]
[1717315548757,2.639,3789.4,3787.9,2.63992]
[1717315549032,2.6391,3789.2,3787.9,2.63992]
[1717315549321,2.6391,3789.2,3788.7,0.555]
[1717315549671,0.06022509,3789.1,3788.7,0.555]
[1717315549932,0.06022509,3789.1,3788.0,0.263992]
[1717315550087,0.06022509,3789.1,3789.0,0.555]
[1717315550407,2.63887,3789.5,3789.0,0.555]
[1717315550565,0.05995987,3789.1,3789.0,0.555]
[1717315550791,2.63902,3789.3,3789.0,0.555]
[1717315551223,0.05997336,3789.2,3789.0,0.555]
[1717315551522,2.63902,3789.3,3789.0,0.555]
[1717315551702,0.05995045,3789.1,3789.0,0.555]
[1717315551904,2.63902,3789.3,3789.0,0.555]
[1717315552103,0.05995045,3789.1,3789.0,0.555]
[1717315552318,2.63902,3789.3,3789.0,0.555]
[1717315552513,0.05995045,3789.1,3788.7,0.555]
[1717315552702,2.63902,3789.3,3788.7,0.555]
[1717315553019,0.05993972,3789.0,3788.7,0.555]
[1717315553328,0.05989797,3788.9,3788.7,0.555]
[1717315553733,2.63902,3789.3,3788.7,0.555]
[1717315554036,2.63902,3789.3,3789.0,0.555]
[1717315557138,2.4729,3789.4,3789.2,0.555]
[1717315559545,0.06003986,3789.3,3788.6,1.335]
[1717315559726,0.06003986,3789.3,3788.6,1.732462]
[1717315561441,7.32,3789.8,3789.2,6.27627]
[1717315561734,7.32,3789.8,3789.2,3.97407]
[1717315562999,2.63846,3790.1,3789.2,2.63907]
[1717315563414,3.18488256,3790.1,3789.2,2.63907]
[1717315564314,0.54642256,3790.0,3789.2,2.63907]
[1717315564911,2.63869,3789.8,3788.8,2.63932]
[1717315565247,3.18524256,3789.6,3788.8,2.63932]
[1717315565515,2.63882,3789.6,3788.8,2.63932]
[1717315566149,3.18524256,3789.6,3788.8,2.63932]
[1717315567055,3.18524256,3789.6,3788.4,2.63957]
[1717315567253,3.18536256,3789.4,3788.4,2.63957]
[1717315567460,0.54642256,3789.3,3788.4,2.63957]
[1717315568214,0.54642256,3789.2,3788.4,2.63957]
[1717315569064,2.405,3789.0,3788.4,2.63957]
[1717315569218,2.405,3789.0,3788.0,2.63985]
[1717315569949,2.405,3789.0,3788.3,1.335]
[1717315570424,3.18558256,3789.1,3788.3,1.335]
[1717315570752,2.63916,3789.1,3788.3,1.335]
[1717315571262,3.18558256,3789.1,3788.3,1.335]
[1717315571972,3.18558256,3789.1,3788.3,1.732485]
[1717315573240,0.54642256,3789.0,3788.3,1.335]
[1717315574297,0.54642256,3788.9,3788.3,1.335]
[1717315574800,0.60246322,3788.8,3788.3,1.335]
[1717315574941,0.60246322,3788.8,3788.3,1.4685]
[1717315575140,0.05604066,3788.8,3788.3,1.4685]
[1717315575369,0.60246322,3788.8,3788.3,1.4685]
[1717315576033,0.54642256,3788.7,3788.3,1.4685]
[1717315576469,0.0556834,3788.6,3788.3,1.4685]
[1717315576884,0.0556834,3788.6,3788.3,1.335]
[1717315577085,0.60210596,3788.6,3788.3,1.335]
[1717315577257,0.54642256,3788.5,3788.3,1.335]
[1717315577631,0.05563756,3788.4,3788.3,1.335]
[1717315578969,0.60301634,3788.4,3788.3,1.335]
[1717315579352,0.87637855,3788.4,3788.3,1.335]
[1717315580369,0.05563756,3788.4,3788.3,1.335]
[1717315580583,1.90911296,3789.4,3788.3,1.335]
[1717315580584,1.09432132,3788.6,3788.4,2.63963]
[1717315580803,1.36365211,3788.8,3788.5,1.335]
[1717315580804,0.82185718,3788.7,3788.5,1.335]
[1717315580984,0.54797935,3788.8,3788.6,2.63949]
[1717315581188,0.54797935,3788.9,3788.8,2.63935]
[1717315581392,0.82185718,3789.0,3788.8,2.63935]
[1717315581692,0.82185718,3789.0,3788.8,3.97435]
[1717315581842,0.54819292,3788.9,3788.8,3.97435]
[1717315582041,0.82185718,3789.0,3788.8,3.97435]
[1717315582240,0.82185718,3789.0,3788.9,0.397435]
[1717315582577,0.548257,3789.1,3789.0,2.63921]
[1717315582744,0.82185718,3789.2,3789.0,2.63921]
[1717315583075,0.82185718,3789.4,3789.2,2.63907]
[1717315583584,0.54823588,3789.3,3789.2,4.89507]
[1717315583743,0.54823588,3789.4,3789.2,6.23007]
[1717315583945,0.54823588,3789.5,3789.2,6.23007]
[1717315584168,0.82185718,3789.7,3789.2,6.23007]
[1717315584169,0.54823588,3789.6,3789.4,2.63894]
[1717315584340,0.82185718,3789.7,3789.4,2.63894]
[1717315584341,0.54823588,3789.5,3789.4,2.63894]
[1717315585150,0.54823588,3789.5,3789.4,3.97394]